fUST/lending_fUST_20251030
["ID","MTS","AMOUNT","RATE_DAILY","PERIOD"]
[392663627,1761795038742,-168.0,0.00028843,2]
[392663628,1761795038751,-196.0,0.00028888,2]
[392663629,1761795038760,-248.20858512,0.00028907,2]
[392663630,1761795038769,-163.9,0.00029036,5]
[392663631,1761795038779,-500.0,0.0002904,4]
[392663632,1761795038788,-500.0,0.0002904,4]
[392663633,1761795038797,-500.0,0.0002904,4]
[392663634,1761795038806,-168.0,0.00029161,2]
[392663635,1761795038816,-208.69378317,0.00029238,2]
[392663636,1761795038826,-500.0,0.00029314,4]
[392663637,1761795038835,-168.0,0.00029324,2]
[392663638,1761795038844,-528.05,0.00029464,5]
[392663639,1761795038854,-168.0,0.00029585,2]
[392663640,1761795038863,-500.0,0.00029588,4]
[392663641,1761795038872,-426.3121454,0.00029601,2]
[392663642,1761795038882,-1000.0,0.000298,50]
[392663643,1761795038891,-168.0,0.00029804,7]
[392663644,1761795038900,-163.9,0.00029824,5]
[392663645,1761795038910,-500.0,0.00029862,4]
[392663646,1761795038919,-321.40181994,0.0002998,2]
[392663647,1761795038929,-529.86763396,0.0002998,2]
[392663648,1761795038939,-188.0,0.0003,7]
[392663649,1761795038949,-500.0,0.0003,7]
[392663650,1761795038959,-637.3511185,0.00030055,30]
[392663651,1761795038969,-500.0,0.00030136,4]
[392663652,1761795038978,-170.70239704,0.000302,7]
[392663653,1761795038988,-117.10306336,0.00030228,2]
[392663656,1761795041105,-507.91514187,0.00027775,4]
[392663657,1761795041115,-50.89693664,0.00030228,2]
[392663658,1761795041124,-500.0,0.00030295,2]
[392663659,1761795041133,-439.79891267,0.00030295,2]
[392663660,1761795041142,-219.27085172,0.00030295,2]
[392663661,1761795041151,-500.0,0.00030295,2]
[392663662,1761795041160,-264.06626156,0.00030295,2]
[392663663,1761795041170,-453.12259035,0.00030295,2]
[392663664,1761795041178,-1010.8575363,0.00030296,3]
[392663694,1761795043375,-500.69831257,0.00027774,4]
[392663695,1761795043385,-571.9274858,0.00027775,4]
[392663696,1761795043394,-133.44572177,0.00030296,3]
[392663697,1761795043406,-2253.92377803,0.00030296,3]
[392663698,1761795043430,-544.7329639,0.00030296,3]
[392663699,1761795043439,-1749.1670361,0.00030296,3]
[392663718,1761795046606,-222.3129639,0.00030296,3]
[392663719,1761795046639,-985.74,0.00030296,3]
[392663720,1761795046650,-492.87,0.00030296,3]
[392663721,1761795046660,-128.0112773,0.00030296,3]
[392663722,1761795123234,150.0,0.00013633,30]
[392663723,1761795143684,5000.0,0.00025205,2]
[392663724,1761795166802,5000.0,0.00025205,2]
[392663725,1761795191661,0.01,0.00025205,2]
[392663726,1761795191682,4497.24773399,0.00025205,2]
[392663727,1761795197690,150.0,0.00013206,30]
[392663728,1761795198097,150.0,0.00014407,30]
[392663729,1761795202190,300.0,0.000252,2]
[392663730,1761795213425,300.0,0.000252,2]
[392663731,1761795223959,300.0,0.000252,2]
[392663732,1761795234837,300.0,0.000252,2]
[392663733,1761795249773,157.18759986,0.00024877,14]
[392663734,1761795272148,150.0,0.00012893,30]
[392663735,1761795272818,1868.4224599,0.00025205,2]
[392663737,1761795302788,-332.86219416,0.0002589,2]
[392663738,1761795302816,-300.0,0.00027672,2]
[392663739,1761795302845,-300.0,0.00027672,2]
[392663740,1761795303411,-10000.01,0.00027673,2]
[392663741,1761795303577,-2436.30981022,0.00027673,2]
[392663742,1761795303607,-417.76037867,0.00027773,2]
[392663743,1761795303640,-500.0,0.00027773,2]
[392663744,1761795303669,-389.99479004,0.00027773,2]
[392663745,1761795303700,-500.0,0.00027773,2]
[392663746,1761795303731,-500.0,0.00027773,2]
[392663747,1761795303760,-11.88004214,0.00027773,2]
[392663748,1761795303871,-488.11995786,0.00027773,2]
[392663749,1761795303899,-500.0,0.00027773,2]
[392663750,1761795303927,-646.9647818,0.00027773,2]
[392663751,1761795303963,-500.0,0.00027773,2]
[392663752,1761795304001,-500.0,0.00027773,2]
[392663753,1761795304042,-500.0,0.00027773,2]
[392663754,1761795304072,-500.0,0.00027773,2]
[392663755,1761795304101,-500.0,0.00027773,2]
[392663756,1761795304128,-500.0,0.00027773,2]
[392663757,1761795304156,-229.84052068,0.00027773,2]
[392663758,1761795304209,-270.15947932,0.00027773,2]
[392663759,1761795304238,-500.0,0.00027773,2]
[392663760,1761795304268,-500.0,0.00027773,2]
[392663761,1761795304298,-500.0,0.00027773,2]
[392663762,1761795304327,-500.0,0.00027773,2]
[392663763,1761795304357,-569.85302636,0.00027773,2]
[392663764,1761795304487,-500.0,0.00027773,2]
[392663765,1761795304522,-500.0,0.00027773,2]
[392663766,1761795304553,-500.0,0.00027773,2]
[392663767,1761795304582,-500.0,0.00027773,2]
[392663768,1761795304950,-270.15947932,0.00027773,2]
[392663769,1761795304969,-229.84052068,0.00027773,2]
[392663770,1761795304979,-270.15947932,0.00027773,2]
[392663771,1761795304995,-117.52088964,0.00027773,2]
[392663772,1761795305004,-202.464099,0.00027773,2]
[392663773,1761795305703,-297.535901,0.00027773,2]
[392663774,1761795305736,-500.0,0.00027773,2]
[392663775,1761795305768,-500.0,0.00027773,2]
[392663776,1761795305801,-500.0,0.00027773,2]
[392663777,1761795305833,-500.0,0.00027773,2]
[392663778,1761795305868,-500.0,0.00027773,2]
[392663779,1761795305898,-379.67790017,0.00027773,2]
[392663780,1761795305928,-500.0,0.00027773,2]
[392663781,1761795305957,-500.0,0.00027773,2]
[392663782,1761795305987,-500.0,0.00027773,2]
[392663783,1761795306022,-145.58239766,0.00027773,2]
[392663784,1761795306127,-354.41760234,0.00027773,2]
[392663785,1761795306158,-500.0,0.00027773,2]
[392663786,1761795306190,-500.0,0.00027773,2]
[392663787,1761795306222,-316.34861395,0.00027773,2]
[392663788,1761795306252,-500.0,0.00027773,2]
[392663789,1761795306283,-500.0,0.00027773,2]
[392663790,1761795306313,-175.59937171,0.00027773,2]
[392663791,1761795306343,-500.0,0.00027773,2]
[392663792,1761795306371,-500.0,0.00027773,2]
[392663793,1761795306399,-1107.278824,0.00027773,2]
[392663794,1761795306486,-92.721176,0.00027773,2]
[392663795,1761795311062,305.41344992,0.000253,2]
[392663796,1761795311651,1200.0,0.00027773,2]
[392663797,1761795316941,370.44347639,0.00026694,2]
[392663798,1761795324358,500.0,0.00027773,5]
[392663799,1761795335010,5175.4098831,0.00027773,2]
[392663801,1761795355100,500.0,0.00027773,2]
[392663802,1761795362616,300.0,0.00027773,2]
[392663803,1761795375279,500.0,0.00027773,2]
[392663804,1761795375306,500.0,0.00027773,2]
[392663805,1761795375629,301.92446486,0.00027773,2]
[392663806,1761795377732,500.0,0.00027773,2]
[392663807,1761795377792,500.0,0.00027773,2]
[392663808,1761795380264,1614.831709,0.00026775,2]
[392663809,1761795430247,854.7266888,0.00027774,2]
[392663810,1761795440494,300.0,0.000268,2]
[392663812,1761795453266,300.0,0.000268,2]
[392663813,1761795459793,1200.0,0.00027773,2]
[392663814,1761795464015,300.0,0.000268,2]
[392663815,1761795476161,300.0,0.000268,2]
[392663816,1761795482677,300.0,0.00027773,2]
[392663817,1761795512923,174.42811404,0.00027773,2]
[392663818,1761795512951,500.0,0.00027773,2]
[392663819,1761795512981,598.63115211,0.00027773,2]
[392663820,1761795513009,375.51976669,0.00027773,2]
[392663821,1761795513037,257.37206822,0.00027773,2]
[392663822,1761795527270,2678.0,0.00027492,2]
[392663823,1761795533792,506.23936794,0.00027773,4]
[392663824,1761795535705,481.41144335,0.00027773,2]
[392663825,1761795535732,500.0,0.00027773,2]
[392663826,1761795535763,474.75342315,0.00027773,2]
[392663827,1761795538795,500.0,0.00027773,2]
[392663828,1761795538846,253.6546645,0.00027773,2]
[392663829,1761795538868,246.3453355,0.00027773,2]
[392663830,1761795538900,252.30593678,0.00027773,2]
[392663831,1761795542798,300.0,0.00027773,2]
[392663832,1761795681534,-326.20495027,0.0002589,2]
[392663833,1761795681562,-300.0,0.00026407,2]
[392663834,1761795682076,-4826.20915511,0.00026408,2]
[392663835,1761795682100,-10000.01,0.00026408,2]
[392663836,1761795684489,-29.61771349,0.00026408,2]
[392663837,1761795684520,-154.0,0.00026989,2]
[392663838,1761795730842,10000.01,0.0002699,2]
[392663839,1761795730863,10000.01,0.0002699,2]
[392663840,1761795730884,10000.01,0.0002699,2]
[392663842,1761795880727,179.69451932,0.00024378,2]
[392663846,1761796041286,-345.41029782,0.0002589,2]
[392663847,1761796041306,-174.75342315,0.00026755,2]
[392663848,1761796041325,-605.27375018,0.00026855,18]
[392663849,1761796041345,-1200.0,0.00026979,2]
[392663850,1761796041365,-300.0,0.00026979,2]
[392663851,1761796041386,-169.97,0.00026979,10]
[392663852,1761796041406,-183.25201176,0.0002698,2]
[392663853,1761796041430,-2389.39864923,0.0002698,2]
[392663854,1761796041449,-300.0,0.00026986,2]
[392663855,1761796041469,-500.0,0.00026986,2]
[392663856,1761796041489,-497.44895913,0.00026986,2]
[392663857,1761796041511,-500.0,0.00026986,2]
[392663858,1761796041533,-500.0,0.00026986,2]
[392663859,1761796041554,-500.0,0.00026986,2]
[392663860,1761796041579,-500.0,0.00026986,2]
[392663861,1761796041601,-437.3855786,0.00026986,2]
[392663862,1761796041623,-500.0,0.00026986,2]
[392663863,1761796041645,-500.0,0.00026986,2]
[392663864,1761796041667,-500.0,0.00026986,2]
[392663865,1761796041691,-500.0,0.00026986,2]
[392663866,1761796041711,-500.0,0.00026986,2]
[392663867,1761796041730,-500.0,0.00026986,2]
[392663868,1761796041754,-500.0,0.00026986,2]
[392663869,1761796041778,-500.0,0.00026986,2]
[392663870,1761796041798,-500.0,0.00026986,2]
[392663871,1761796041826,-500.0,0.00026986,2]
[392663872,1761796041847,-500.0,0.00026986,2]
[392663873,1761796041869,-500.0,0.00026986,2]
[392663874,1761796041891,-500.0,0.00026986,2]
[392663875,1761796041913,-500.0,0.00026986,2]
[392663876,1761796041937,-500.0,0.00026986,2]
[392663877,1761796041959,-500.0,0.00026986,2]
[392663878,1761796041980,-500.0,0.00026986,2]
[392663879,1761796042002,-500.0,0.00026986,2]
[392663880,1761796042023,-201.19263852,0.00026986,2]
[392663881,1761796042044,-500.0,0.00026986,2]
[392663882,1761796042064,-500.0,0.00026986,2]
[392663883,1761796042084,-500.0,0.00026986,2]
[392663884,1761796042107,-500.0,0.00026986,2]
[392663885,1761796042131,-500.0,0.00026986,2]
[392663886,1761796042153,-500.0,0.00026986,2]
[392663887,1761796042174,-500.0,0.00026986,2]
[392663888,1761796042194,-500.0,0.00026986,2]
[392663889,1761796042214,-500.0,0.00026986,2]
[392663890,1761796042234,-500.0,0.00026986,2]
[392663891,1761796042254,-500.0,0.00026986,2]
[392663892,1761796042274,-212.94331316,0.00026986,2]
[392663896,1761796096378,2099.64349525,0.00024953,2]
[392663905,1761796147119,-300.0,0.00025966,2]
[392663906,1761796147140,-1771.95737705,0.00025967,2]
[392663908,1761796156099,-11349.78399625,0.00025967,2]
[392663927,1761796232533,-573.21805118,0.0002669,3]
[392663929,1761796232545,-566.82674917,0.0002669,3]
[392664005,1761796238919,-154.53519965,0.0002669,3]
[392664006,1761796238928,-4422.0457744,0.00026801,2]
[392664007,1761796238938,-174.75342315,0.00026888,2]
[392664008,1761796238947,-371.3,0.00026968,3]
[392664009,1761796238957,-500.0,0.00026973,2]
[392664010,1761796238966,-500.0,0.00026973,2]
[392664011,1761796238976,-300.0,0.00026977,2]
[392664012,1761796238986,-300.0,0.00026977,2]
[392664013,1761796238996,-300.0,0.00026977,2]
[392664014,1761796239006,-300.0,0.00026977,2]
[392664015,1761796239016,-500.0,0.00026977,2]
[392664016,1761796239026,-500.0,0.00026977,2]
[392664017,1761796239035,-345.35725231,0.00026977,2]
[392664018,1761796239045,-500.0,0.00026977,2]
[392664019,1761796239055,-500.0,0.00026977,2]
[392664020,1761796239065,-500.0,0.00026977,2]
[392664021,1761796239074,-616.31812005,0.00026977,2]
[392664022,1761796239084,-500.0,0.00026977,2]
[392664023,1761796239094,-500.0,0.00026977,2]
[392664024,1761796239103,-525.14095892,0.00026977,2]
[392664025,1761796239113,-500.0,0.00026977,2]
[392664026,1761796239122,-500.0,0.00026977,2]
[392664027,1761796239132,-500.0,0.00026977,2]
[392664028,1761796239141,-500.0,0.00026977,2]
[392664029,1761796239151,-500.0,0.00026977,2]
[392664030,1761796239161,-500.0,0.00026977,2]
[392664031,1761796239172,-500.0,0.00026977,2]
[392664032,1761796239181,-578.47028201,0.00026977,2]
[392664033,1761796239191,-500.0,0.00026977,2]
[392664034,1761796239201,-500.0,0.00026977,2]
[392664035,1761796239211,-500.0,0.00026977,2]
[392664036,1761796239220,-500.0,0.00026977,2]
[392664037,1761796239230,-500.0,0.00026977,2]
[392664038,1761796239240,-2515.7462825,0.00026978,2]
[392664039,1761796239252,-543.87952788,0.00026978,2]
[392664045,1761796240588,-857.87390751,0.00026978,2]
[392664046,1761796240600,-146161.36872779,0.00026978,2]
[392664047,1761796240609,-211.52913229,0.0002698,2]
[392664048,1761796240619,-285.38584851,0.0002698,2]
[392664049,1761796240628,-500.0,0.00026986,2]
[392664050,1761796240638,-15147.37818859,0.00026986,2]
[392664051,1761796240649,-2204.31637253,0.00026986,2]
[392664121,1761796241694,353.5140324,0.0002589,2]
[392664149,1761796243687,490.10118401,0.00025205,2]
[392664150,1761796243708,4509.89881599,0.00025205,2]
[392664151,1761796243724,-533.99159341,0.00026986,2]
[392664157,1761796246709,-2012.44309887,0.00026986,2]
[392664158,1761796258975,5000.0,0.00025205,2]
[392664160,1761796298057,150.0,0.00013079,30]
[392664162,1761796368222,150.0,0.0001308,30]
[392664185,1761796458162,5000.0,0.000183,30]
[392664186,1761796512142,193.0,0.00030137,120]
[392664187,1761796515499,-288.39451596,0.00025205,2]
[392664189,1761796617958,-603.65276725,0.00025205,2]
[392664190,1761796617987,-361.72940978,0.00025205,2]
[392664191,1761796618020,-1512.62914429,0.00025661,2]
[392664192,1761796618049,-213.55964899,0.00025672,2]
[392664193,1761796618076,-500.0,0.00025672,2]
[392664194,1761796618103,-500.0,0.00025672,2]
[392664195,1761796618131,-500.0,0.00025672,2]
[392664196,1761796618158,-500.0,0.00025672,2]
[392664197,1761796618187,-116.86805938,0.00025672,2]
[392664198,1761796620881,-208.3376133,0.00025205,2]
[392664199,1761796620910,-383.13194062,0.00025672,2]
[392664200,1761796620940,-500.0,0.00025672,2]
[392664201,1761796620967,-500.0,0.00025672,2]
[392664202,1761796620993,-500.0,0.00025672,2]
[392664203,1761796621025,-500.0,0.00025672,2]
[392664204,1761796621052,-500.0,0.00025672,2]
[392664205,1761796621081,-500.0,0.00025672,2]
[392664206,1761796621107,-358.77964207,0.00025672,2]
[392664207,1761796621136,-500.0,0.00025672,2]
[392664208,1761796621165,-500.0,0.00025672,2]
[392664209,1761796623960,-300.0,0.00025671,2]
[392664210,1761796623989,-385.48161847,0.00025672,2]
[392664211,1761796624020,-500.0,0.00025672,2]
[392664212,1761796624050,-500.0,0.00025672,2]
[392664213,1761796624080,-500.0,0.00025672,2]
[392664214,1761796624110,-500.0,0.00025672,2]
[392664215,1761796624138,-500.0,0.00025672,2]
[392664216,1761796624167,-500.0,0.00025672,2]
[392664217,1761796624197,-500.0,0.00025672,2]
[392664218,1761796624226,-500.0,0.00025672,2]
[392664219,1761796624253,-129.04676306,0.00025672,2]
[392664220,1761796626955,-370.95323694,0.00025672,2]
[392664221,1761796626986,-500.0,0.00025672,2]
[392664222,1761796627019,-500.0,0.00025672,2]
[392664223,1761796627049,-500.0,0.00025672,2]
[392664224,1761796627077,-500.0,0.00025672,2]
[392664225,1761796627104,-500.0,0.00025672,2]
[392664226,1761796627134,-602.80256895,0.00025672,2]
[392664227,1761796627166,-159.41973462,0.00025672,2]
[392664228,1761796627198,-500.0,0.00025672,2]
[392664229,1761796627227,-500.0,0.00025672,2]
[392664230,1761796627254,-233.65891898,0.00025672,2]
[392664233,1761796662427,-1200.0,0.00025671,2]
[392664234,1761796662455,-266.34108102,0.00025672,2]
[392664235,1761796662483,-500.0,0.00025672,2]
[392664236,1761796662511,-500.0,0.00025672,2]
[392664237,1761796662539,-500.0,0.00025672,2]
[392664238,1761796662568,-500.0,0.00025672,2]
[392664239,1761796662594,-537.79057012,0.00025672,2]
[392664240,1761796662623,-500.0,0.00025672,2]
[392664241,1761796662650,-491.74669772,0.00025672,2]
[392664242,1761796668549,-8.25330228,0.00025672,2]
[392664243,1761796668584,-500.0,0.00025672,2]
[392664244,1761796668620,-500.0,0.00025672,2]
[392664245,1761796668650,-518.46043826,0.00025672,2]
[392664246,1761796668678,-500.0,0.00025672,2]
[392664247,1761796668705,-500.0,0.00025672,2]
[392664248,1761796668734,-500.0,0.00025672,2]
[392664249,1761796668762,-500.0,0.00025672,2]
[392664250,1761796668789,-500.0,0.00025672,2]
[392664251,1761796668818,-500.0,0.00025672,2]
[392664252,1761796668848,-446.58251892,0.00025672,2]
[392664253,1761796674477,-53.41748108,0.00025672,2]
[392664254,1761796674507,-500.0,0.00025672,2]
[392664255,1761796674542,-500.0,0.00025672,2]
[392664256,1761796674573,-500.0,0.00025672,2]
[392664257,1761796674603,-500.0,0.00025672,2]
[392664258,1761796674632,-500.0,0.00025672,2]
[392664259,1761796674661,-500.0,0.00025672,2]
[392664260,1761796674689,-500.0,0.00025672,2]
[392664261,1761796674718,-500.0,0.00025672,2]
[392664262,1761796674747,-500.0,0.00025672,2]
[392664263,1761796674776,-393.17503784,0.00025672,2]
[392664264,1761796680287,4063.58382417,0.00025205,2]
[392664265,1761796703210,936.41617583,0.00025205,2]
[392664266,1761796774415,150.0,0.00013123,30]
[392664267,1761796774831,150.0,0.00014316,30]
[392664268,1761796781678,353.78864747,0.00024378,2]
[392664269,1761796794013,318.84031435,0.00025205,2]
[392664270,1761796816949,200.0,0.00025205,2]
[392664272,1761796845500,150.0,0.00012352,30]
[392664273,1761796845880,150.0,0.00013475,30]
[392664274,1761796846266,150.0,0.00014598,30]
[392664276,1761796917343,150.0,0.00012319,30]
[392664277,1761796917753,150.0,0.00013439,30]
[392664278,1761796926248,268.90209885,0.00025205,2]
[392664279,1761796987385,150.0,0.00012319,30]
[392664280,1761797056850,201.039311,0.00024666,2]
[392664281,1761797060947,150.0,0.00012352,30]
[392664282,1761797083972,-370.99968293,0.00025289,2]
[392664283,1761797083999,-1109.64,0.00025373,3]
[392664284,1761797084027,-269.15,0.00025662,10]
[392664285,1761797084054,-226.13890737,0.00025663,2]
[392664286,1761797084082,-2269.92871676,0.00025663,2]
[392664287,1761797084110,-300.0,0.00025667,2]
[392664288,1761797084137,-306.29538588,0.00025668,2]
[392664289,1761797084484,-295.70461412,0.00025668,2]
[392664290,1761797084512,-500.0,0.00025668,2]
[392664291,1761797084539,-500.0,0.00025668,2]
[392664292,1761797084567,-500.0,0.00025668,2]
[392664293,1761797084595,-500.0,0.00025668,2]
[392664294,1761797084624,-500.0,0.00025668,2]
[392664295,1761797084652,-500.0,0.00025668,2]
[392664296,1761797084680,-500.0,0.00025668,2]
[392664297,1761797084708,-500.0,0.00025668,2]
[392664298,1761797084734,-174.76741956,0.00025668,2]
[392664299,1761797084762,-500.0,0.00025668,2]
[392664300,1761797084806,-500.0,0.00025668,2]
[392664301,1761797084835,-500.0,0.00025668,2]
[392664302,1761797084862,-500.0,0.00025668,2]
[392664303,1761797084889,-500.0,0.00025668,2]
[392664304,1761797084915,-500.0,0.00025668,2]
[392664305,1761797084942,-500.0,0.00025668,2]
[392664306,1761797084970,-500.0,0.00025668,2]
[392664307,1761797084997,-500.0,0.00025668,2]
[392664308,1761797085026,-500.0,0.00025668,2]
[392664309,1761797085053,-500.0,0.00025668,2]
[392664310,1761797085186,-500.0,0.00025668,2]
[392664311,1761797085213,-385.8779642,0.00025668,2]
[392664312,1761797085242,-500.0,0.00025668,2]
[392664313,1761797085273,-500.0,0.00025668,2]
[392664314,1761797085300,-544.02489976,0.00025668,2]
[392664315,1761797085327,-500.0,0.00025668,2]
[392664316,1761797085355,-500.0,0.00025668,2]
[392664317,1761797085385,-500.0,0.00025668,2]
[392664318,1761797085413,-402.16835722,0.00025668,2]
[392664319,1761797085442,-500.0,0.00025668,2]
[392664320,1761797085725,-500.0,0.00025668,2]
[392664321,1761797085758,-500.0,0.00025668,2]
[392664322,1761797085790,-500.0,0.00025668,2]
[392664323,1761797085820,-188.05829777,0.00025668,2]
[392664324,1761797085853,-500.0,0.00025668,2]
[392664325,1761797085885,-500.0,0.00025668,2]
[392664326,1761797085917,-500.0,0.00025668,2]
[392664327,1761797085950,-500.0,0.00025668,2]
[392664328,1761797085983,-500.0,0.00025668,2]
[392664329,1761797086016,-500.0,0.00025668,2]
[392664330,1761797086048,-123.89340446,0.00025668,2]
[392664331,1761797087089,-376.10659554,0.00025668,2]
[392664332,1761797087120,-500.0,0.00025668,2]
[392664333,1761797087149,-428.15463709,0.00025668,2]
[392664334,1761797087177,-500.0,0.00025668,2]
[392664335,1761797087207,-500.0,0.00025668,2]
[392664336,1761797087234,-500.0,0.00025668,2]
[392664337,1761797087270,-500.0,0.00025668,2]
[392664338,1761797087298,-500.0,0.00025668,2]
[392664339,1761797087327,-500.0,0.00025668,2]
[392664340,1761797087356,-500.0,0.00025668,2]
[392664341,1761797087499,-500.0,0.00025668,2]
[392664342,1761797087527,-500.0,0.00025668,2]
[392664343,1761797087554,-500.0,0.00025668,2]
[392664344,1761797087582,-500.0,0.00025668,2]
[392664345,1761797087611,-500.0,0.00025668,2]
[392664346,1761797087641,-500.0,0.00025668,2]
[392664347,1761797087670,-500.0,0.00025668,2]
[392664348,1761797087698,-500.0,0.00025668,2]
[392664349,1761797087726,-500.0,0.00025668,2]
[392664350,1761797087754,-500.0,0.00025668,2]
[392664351,1761797087966,-500.0,0.00025668,2]
[392664352,1761797087994,-500.0,0.00025668,2]
[392664353,1761797088022,-500.0,0.00025668,2]
[392664354,1761797088050,-500.0,0.00025668,2]
[392664355,1761797088078,-500.0,0.00025668,2]
[392664356,1761797088107,-558.2792467,0.00025668,2]
[392664357,1761797088136,-561.44468462,0.00025668,2]
[392664358,1761797088164,-500.0,0.00025668,2]
[392664359,1761797088193,-500.0,0.00025668,2]
[392664360,1761797088220,-260.56213736,0.00025668,2]
[392664361,1761797095952,-224.29,0.00025663,10]
[392664362,1761797095980,-239.43786264,0.00025668,2]
[392664363,1761797096008,-500.0,0.00025668,2]
[392664364,1761797096036,-500.0,0.00025668,2]
[392664365,1761797096063,-500.0,0.00025668,2]
[392664366,1761797096090,-500.0,0.00025668,2]
[392664367,1761797096118,-500.0,0.00025668,2]
[392664368,1761797096145,-500.0,0.00025668,2]
[392664369,1761797096173,-500.0,0.00025668,2]
[392664370,1761797096200,-293.23398372,0.00025668,2]
[392664371,1761797096227,-304.73513171,0.00025668,2]
[392664372,1761797096256,-376.61604386,0.00025668,2]
[392664373,1761797096385,-123.38395614,0.00025668,2]
[392664374,1761797096412,-500.0,0.00025668,2]
[392664375,1761797096439,-500.0,0.00025668,2]
[392664376,1761797096466,-500.0,0.00025668,2]
[392664377,1761797096493,-500.0,0.00025668,2]
[392664378,1761797096520,-1200.0,0.00025669,2]
[392664379,1761797097153,-1513.7541983,0.00025669,2]
[392664380,1761797101964,-300.0,0.00025668,2]
[392664381,1761797101997,-9400.01,0.00025669,2]
[392664382,1761797102074,-10000.01,0.00025669,2]
[392664390,1761797120914,-307.43416085,0.00025571,2]
[392664391,1761797120945,-151.0,0.00025656,2]
[392664392,1761797120974,-151.0,0.00025656,2]
[392664393,1761797121112,-151.0,0.00025656,2]
[392664394,1761797121144,-151.0,0.00025656,2]
[392664395,1761797121174,-151.0,0.00025656,2]
[392664396,1761797121203,-151.0,0.00025656,2]
[392664397,1761797121230,-151.0,0.00025656,2]
[392664398,1761797121258,-151.0,0.00025656,2]
[392664399,1761797121288,-151.0,0.00025656,2]
[392664400,1761797121318,-151.0,0.00025656,2]
[392664401,1761797121346,-151.0,0.00025656,2]
[392664402,1761797121374,-151.0,0.00025656,2]
[392664403,1761797121402,-151.0,0.00025656,2]
[392664404,1761797121430,-151.0,0.00025656,2]
[392664405,1761797121458,-151.0,0.00025656,2]
[392664406,1761797121486,-151.0,0.00025656,2]
[392664407,1761797121516,-151.0,0.00025656,2]
[392664408,1761797121545,-151.0,0.00025656,2]
[392664409,1761797121573,-300.0,0.00025668,2]
[392664410,1761797121601,-300.0,0.00025668,2]
[392664411,1761797121629,-300.0,0.00025668,2]
[392664412,1761797121656,-300.0,0.00025668,2]
[392664413,1761797121684,-349.1416783,0.00025668,2]
[392664414,1761797122017,-151.0,0.00025656,2]
[392664415,1761797122026,-699.8583217,0.00025668,2]
[392664416,1761797122533,-151.0,0.00025656,2]
[392664417,1761797122561,-151.0,0.00025668,2]
[392664418,1761797122606,-9396.01,0.00025669,2]
[392664422,1761797143194,256.34283155,0.00024626,14]
[392664424,1761797197979,-300.0,0.00025655,2]
[392664425,1761797198016,-500.0,0.00025655,2]
[392664426,1761797198046,-500.0,0.00025655,2]
[392664427,1761797198074,-500.0,0.00025655,2]
[392664428,1761797198100,-153.98644047,0.00025655,2]
[392664429,1761797198127,-386.32009561,0.00025655,2]
[392664430,1761797198154,-500.0,0.00025655,2]
[392664431,1761797198181,-631.05200448,0.00025655,2]
[392664432,1761797198211,-500.0,0.00025655,2]
[392664433,1761797198239,-211.35203969,0.00025655,2]
[392664434,1761797198267,-500.0,0.00025655,2]